bitfinex-derivatives/quotes_SOLF0:USTF0_20240918
["timestamp","ask_amount","ask_price","bid_price","bid_amount"]
[1726646675866,1.474,131.42,131.36,7.56150239]
[1726646676066,1.474,131.42,131.39,9.37]
[1726646676881,3.8047,131.4,131.39,9.37]
[1726646685679,3.8042,131.42,131.39,9.37]
[1726646685883,3.8042,131.42,131.41,9.37]
[1726646689179,9.37,131.43,131.38,3.805]
[1726646689383,9.37,131.43,131.38,13.175]
[1726646691083,9.37,131.44,131.39,9.37]
[1726646692493,3.8043,131.41,131.39,9.37]
[1726646703296,3.8043,131.41,131.37,6.6734]
[1726646703495,3.8043,131.41,131.4,9.37]
[1726646704587,3.8043,131.41,131.37,6.6734]
[1726646704788,3.8043,131.41,131.4,9.37]
[1726646707198,3.8043,131.41,131.39,9.37]
[1726646708591,9.37,131.42,131.37,12.238]
[1726646708793,9.37,131.4,131.37,1.4397]
[1726646709099,9.37,131.4,131.36,9.37]
[1726646709306,3.805,131.39,131.36,9.37]
[1726646710305,3.805,131.39,131.35,3.806]
[1726646710500,3.805,131.39,131.36,9.37]
[1726646713702,3.805,131.39,131.35,3.806]
[1726646713902,3.8052,131.38,131.34,5.2838]
[1726646714103,3.8052,131.38,131.36,9.37]
[1726646714903,1.3809,131.42,131.34,5.2838]
[1726646714904,3.805,131.39,131.37,9.37]
[1726646715108,3.805,131.39,131.35,3.806]
[1726646715109,3.805,131.39,131.38,9.37]
[1726646716307,3.805,131.39,131.35,5.2249]
[1726646716507,3.805,131.39,131.37,9.37]
[1726646717207,9.37,131.41,131.37,9.37]
[1726646717608,9.37,131.4,131.36,9.37]
[1726646717911,3.8052,131.38,131.36,9.37]
[1726646719416,3.805,131.39,131.37,9.37]
[1726646719605,1.3809,131.42,131.38,9.37]
[1726646720312,3.8048,131.4,131.38,9.37]
[1726646721404,3.805,131.39,131.35,1.4189]
[1726646721712,3.805,131.39,131.37,9.37]
[1726646722212,3.8047,131.4,131.37,9.37]
[1726646722913,3.8049,131.39,131.37,9.37]
[1726646730133,3.8049,131.39,131.35,5.2248]
[1726646730432,3.8049,131.39,131.37,9.37]
[1726646733128,3.8049,131.39,131.35,5.2248]
[1726646733330,3.8049,131.39,131.37,9.37]
[1726646734026,1.3809,131.42,131.38,9.37]
[1726646734929,1.3809,131.42,131.35,1.4189]
[1726646734930,9.37,131.39,131.35,1.4189]
[1726646735325,3.8053,131.38,131.35,10.7889]
[1726646737336,3.8053,131.38,131.35,1.4189]
[1726646737538,3.8053,131.38,131.35,10.7889]
[1726646741030,3.8053,131.38,131.35,1.4189]
[1726646741230,3.8053,131.38,131.35,10.7889]
[1726646742038,13.1753,131.38,131.35,9.37]
[1726646742336,3.8059,131.36,131.32,1.3961]
[1726646742540,3.8059,131.36,131.33,9.37]
[1726646744336,3.806,131.35,131.32,1.3961]
[1726646744638,9.37,131.36,131.32,10.7661]
[1726646744838,1.3809,131.42,131.32,10.7661]
[1726646745039,9.37,131.36,131.31,10.7583]
[1726646745334,13.16722943,131.36,131.31,10.7583]
[1726646745738,9.37,131.34,131.3,1.3956]
[1726646745938,9.37,131.34,131.3,9.37]
[1726646746341,3.8069,131.33,131.3,9.37]
[1726646746840,3.8069,131.33,131.28,3.808]
[1726646747039,3.8069,131.33,131.29,9.37]
[1726646747241,9.37,131.34,131.29,9.37]
[1726646747436,9.37,131.34,131.3,9.37]
[1726646747644,3.79722943,131.36,131.3,9.37]
[1726646747840,1.3809,131.42,131.3,9.37]
[1726646748043,9.37,131.36,131.31,9.37]
[1726646748750,3.8062,131.35,131.31,9.37]
[1726646749848,3.8062,131.35,131.32,9.37]
[1726646751042,13.1758,131.36,131.32,9.37]
[1726646751542,3.806,131.35,131.32,9.37]
[1726646753238,3.806,131.35,131.31,9.37]
[1726646755149,3.8064,131.34,131.31,9.37]
[1726646757046,13.1764,131.34,131.3,9.37]
[1726646758046,3.8066,131.33,131.3,9.37]
[1726646758348,3.8066,131.33,131.29,14.6767]
[1726646758844,3.8066,131.33,131.29,5.3067]
[1726646759052,3.8066,131.33,131.29,14.6767]
[1726646759254,3.8069,131.32,131.29,10.869]
[1726646759451,9.37,131.32,131.28,1.5216]
[1726646759649,9.37,131.32,131.28,10.8916]
[1726646759855,3.8073,131.31,131.28,10.8916]
[1726646761958,3.8073,131.31,131.28,14.6996]
[1726646762354,13.177,131.32,131.28,14.6996]
[1726646762556,3.807,131.32,131.29,9.37]
[1726646762856,3.8066,131.33,131.3,9.37]
[1726646763159,3.8066,131.33,131.31,9.37]
[1726646763359,13.23780365,131.36,131.31,9.37]
[1726646763549,9.37,131.36,131.31,9.37]
[1726646764159,13.26780303,131.36,131.31,9.37]
[1726646764660,3.8064,131.34,131.31,9.37]
[1726646764860,3.89780303,131.36,131.33,9.37]
[1726646765062,24.59,131.4,131.35,9.37]
[1726646765561,3.8053,131.38,131.35,9.37]
[1726646767556,3.805,131.39,131.35,9.37]
[1726646767957,3.805,131.39,131.37,9.37]
[1726646768157,19.0247,131.4,131.37,9.37]
[1726646768651,15.22,131.4,131.38,9.37]
[1726646768858,15.22,131.4,131.39,9.37]
[1726646770064,9.37,131.43,131.39,9.37]
[1726646770363,3.8042,131.42,131.39,9.37]
[1726646770664,3.8042,131.42,131.4,9.37]
[1726646772263,9.37,131.45,131.41,9.37]
[1726646772561,3.8037,131.44,131.4,9.37]
[1726646772766,3.8037,131.44,131.39,5.2803]
[1726646772767,9.37,131.44,131.39,14.6503]
[1726646773764,3.8037,131.43,131.39,14.6503]
[1726646774966,3.8037,131.43,131.39,10.8455]
[1726646776366,13.1737,131.43,131.39,10.8455]
[1726646778870,3.804,131.42,131.39,10.8455]
[1726646781565,3.8043,131.41,131.38,9.37]
[1726646781765,9.37,131.41,131.37,9.37]
[1726646781966,9.37,131.39,131.34,1.4459]
[1726646782161,13.1747,131.4,131.36,9.37]
[1726646783167,3.8049,131.39,131.36,9.37]
[1726646783367,13.1749,131.39,131.36,9.37]
[1726646786177,9.37,131.39,131.36,9.37]
[1726646786668,13.175,131.39,131.36,9.37]
[1726646792181,3.8051,131.38,131.36,9.37]
[1726646793794,13.175,131.39,131.36,9.37]
[1726646796693,3.8052,131.38,131.36,9.37]
[1726646799699,13.175,131.39,131.36,9.37]
[1726646803702,3.8051,131.38,131.36,9.37]
[1726646810508,3.8051,131.38,131.35,13.176]
[1726646811210,3.8051,131.38,131.34,1.4459]
[1726646811211,3.8051,131.38,131.34,5.252]
[1726646811515,3.8051,131.38,131.35,9.37]
[1726646815308,9.37,131.39,131.35,9.37]
[1726646816211,3.8053,131.38,131.35,9.37]
[1726646816410,9.37,131.39,131.35,9.37]
[1726646817311,13.1751,131.39,131.35,13.1759]
[1726646824317,3.8047,131.4,131.37,9.37]
[1726646825311,1.402,131.42,131.39,9.37]
[1726646825514,10.772,131.42,131.38,9.37]
[1726646826212,3.8044,131.41,131.38,9.37]
[1726646827521,3.8052,131.38,131.34,5.2521]
[1726646827707,9.37,131.39,131.34,10.8159]
[1726646827911,9.37,131.39,131.35,9.37]
[1726646828313,9.37,131.4,131.35,9.37]
[1726646828508,13.1747,131.4,131.35,9.37]
[1726646829015,3.8049,131.39,131.35,13.1759]
[1726646829719,13.1749,131.39,131.35,13.1759]
[1726646831208,13.1749,131.39,131.35,9.37]
[1726646835217,3.8051,131.38,131.34,1.4459]
[1726646835419,3.8051,131.38,131.34,10.8159]
[1726646837221,3.8056,131.37,131.34,1.4459]
[1726646840020,3.8056,131.37,131.34,10.8159]
[1726646845528,3.8056,131.37,131.34,1.4459]
[1726646845719,3.8056,131.37,131.34,10.8159]
[1726646849923,13.1756,131.37,131.34,1.4459]
[1726646850126,9.37,131.36,131.31,13.24075876]
[1726646850321,1.402,131.42,131.32,15.78924097]
[1726646850525,9.37,131.37,131.31,7.70400514]
[1726646850726,3.806,131.36,131.31,7.70400514]
[1726646850927,3.806,131.36,131.33,9.37]
[1726646851123,3.8056,131.37,131.32,3.8067]
[1726646851324,3.8056,131.37,131.35,9.37]
[1726646851531,9.37,131.37,131.33,1.4437]
[1726646851832,3.8059,131.36,131.33,10.8137]
[1726646852331,13.1756,131.37,131.33,10.8137]
[1726646852534,3.8056,131.37,131.34,9.37]
[1726646852830,9.37,131.38,131.34,9.37]
[1726646853032,3.8055,131.37,131.34,9.37]
[1726646853331,13.1755,131.37,131.33,10.8137]
[1726646853537,9.37,131.37,131.33,10.8137]
[1726646853727,3.8058,131.36,131.33,10.8137]
[1726646855132,13.1758,131.36,131.33,10.8137]
[1726646858633,3.806,131.35,131.33,10.8137]
[1726646859040,3.8063,131.34,131.33,1.4437]
[1726646859238,3.8063,131.34,131.31,3.89700514]
[1726646859433,13.1763,131.34,131.31,13.26700514]
[1726646859740,3.8066,131.33,131.31,3.89700514]
[1726646860031,13.1766,131.33,131.3,9.37]
[1726646860235,9.37,131.34,131.31,13.10316043]
[1726646860436,13.1766,131.34,131.31,9.37]
[1726646860833,13.1766,131.34,131.31,13.26538896]
[1726646861635,3.8066,131.33,131.31,3.89538896]
[1726646861834,3.8066,131.33,131.31,13.26538896]
[1726646863642,3.8066,131.33,131.31,3.89538896]
[1726646863827,3.8066,131.33,131.31,13.26538896]
[1726646864234,3.8069,131.32,131.31,13.26538896]
[1726646865337,3.8067,131.33,131.31,13.26538896]
[1726646871136,3.8067,131.33,131.32,9.37]
[1726646874245,3.8067,131.33,131.31,3.89538896]
[1726646874943,3.8067,131.33,131.31,13.26538896]
[1726646875142,3.8067,131.33,131.31,3.89538896]
[1726646875450,9.37,131.32,131.28,3.0059]
[1726646875841,9.37,131.31,131.25,1.4925]
[1726646876042,9.37,131.29,131.26,6.42046149]
[1726646876250,9.37,131.29,131.25,1.4925]
[1726646876444,3.808,131.28,131.27,6.42057058]
[1726646876646,3.808,131.28,131.26,9.37]
[1726646877043,3.8078,131.29,131.26,9.37]
[1726646877241,3.8078,131.29,131.27,9.37]
[1726646877748,3.8078,131.29,131.26,9.37]
[1726646877947,3.8078,131.29,131.26,13.1784]
[1726646879238,3.8081,131.28,131.25,5.3013]
[1726646879443,3.8081,131.28,131.25,14.6713]
[1726646881854,3.808,131.29,131.27,9.37]
[1726646882059,9.37,131.31,131.27,9.37]
[1726646882454,3.8079,131.29,131.27,9.37]
[1726646882651,9.37,131.32,131.28,9.37]
[1726646882955,3.8074,131.31,131.28,9.37]
[1726646883161,9.37,131.32,131.28,9.37]
[1726646883361,20.41872809,131.35,131.3,9.37]
[1726646883362,15.22,131.35,131.3,9.37]
[1726646883560,24.59,131.35,131.3,9.37]
[1726646884066,3.8067,131.33,131.3,9.37]
[1726646884468,3.8067,131.33,131.29,3.8077]
[1726646884469,15.22,131.35,131.31,9.37]
[1726646884668,3.8065,131.34,131.31,9.37]
[1726646886369,9.37,131.33,131.29,9.37]
[1726646887659,3.8073,131.31,131.28,10.8705]
[1726646890769,3.8075,131.3,131.28,10.8705]
[1726646893266,3.8077,131.29,131.28,9.37]
[1726646893868,3.8077,131.29,131.27,1.3854]
[1726646894069,3.808,131.28,131.27,10.7554]
[1726646895175,3.8079,131.29,131.27,10.7554]
[1726646896477,3.808,131.28,131.25,14.6713]
[1726646897172,3.8084,131.27,131.25,14.6713]
[1726646897377,3.8084,131.27,131.25,10.8625]
[1726646897972,3.8086,131.26,131.24,14.7045]
[1726646898272,3.8086,131.26,131.24,10.8955]
[1726646899774,1.4279,131.33,131.23,1.4273]
[1726646899775,3.809,131.25,131.23,1.4273]
[1726646901778,3.809,131.25,131.23,10.7973]
[1726646902878,9.37,131.28,131.24,9.37]
[1726646903177,9.37,131.29,131.24,9.37]
[1726646903375,3.8083,131.27,131.25,9.37]
[1726646903777,3.8083,131.27,131.24,3.809]
[1726646903979,3.8088,131.26,131.24,9.37]
[1726646904172,3.8088,131.26,131.23,16.1129]
[1726646904868,3.8089,131.25,131.23,6.7429]
[1726646905077,3.8089,131.25,131.23,16.1129]
[1726646906971,3.8089,131.25,131.23,12.3034]
[1726646910482,3.8089,131.25,131.23,16.1129]
[1726646911083,3.8089,131.25,131.23,12.3034]
[1726646912582,3.8089,131.25,131.23,10.8761]
[1726646912779,3.8089,131.25,131.23,9.37]
[1726646914883,3.8092,131.24,131.22,17.0559544]
[1726646917389,3.8094,131.24,131.22,13.2462544]
[1726646919288,3.8094,131.24,131.23,9.37]
[1726646919883,3.8091,131.25,131.23,9.37]
[1726646920588,3.8091,131.25,131.24,9.37]
[1726646921784,3.8091,131.25,131.23,13.1794]
[1726646922180,3.8091,131.25,131.22,3.8762544]
[1726646922181,1.4793,131.3,131.24,9.37]
[1726646922487,9.37,131.31,131.26,9.37]
[1726646922683,9.37,131.32,131.27,9.37]
[1726646922986,15.24,131.33,131.28,9.37]
[1726646923185,3.8074,131.31,131.3,9.37]
[1726646923383,15.24,131.33,131.3,9.37]
[1726646923890,3.8071,131.32,131.3,9.37]
[1726646926177,3.8067,131.33,131.3,9.37]
[1726646927382,3.8069,131.32,131.3,9.37]
[1726646941503,3.8069,131.32,131.25,1.511]
[1726646941504,9.37,131.32,131.25,1.511]
[1726646941703,9.37,131.3,131.25,1.511]
[1726646941907,9.37,131.29,131.25,1.511]
[1726646942207,9.37,131.27,131.18,8.59771733]
[1726646942394,9.37,131.25,131.22,13.2462544]
[1726646942598,9.37,131.25,131.23,1.4949]
[1726646942998,13.1791,131.25,131.23,1.4949]
[1726646943203,3.8091,131.25,131.23,1.4949]
[1726646943507,3.8085,131.27,131.24,9.37]
[1726646946811,9.37,131.26,131.22,13.1797]
[1726646947002,9.37,131.26,131.22,17.07297606]
[1726646947505,3.8089,131.25,131.22,17.07297606]
[1726646953816,3.8093,131.24,131.22,13.26327606]
[1726646954012,9.37,131.23,131.19,1.5281]
[1726646954318,3.8104,131.2,131.18,14.64487621]
[1726646954525,3.8104,131.2,131.18,9.37]
[1726646955011,9.37,131.2,131.16,3.8113]
[1726646955311,9.37,131.2,131.16,7.53005918]
[1726646955711,3.811,131.18,131.15,13.1817]
[1726646956108,3.811,131.18,131.15,16.89969706]
[1726646956516,3.8113,131.17,131.15,3.71799706]
[1726646956818,3.8113,131.17,131.14,13.182]
[1726646957110,9.37,131.2,131.16,9.37]
[1726646957320,15.24,131.26,131.17,9.37]
[1726646957509,3.8105,131.2,131.16,3.8113]
[1726646957709,3.8105,131.2,131.17,9.37]
[1726646958206,9.37,131.23,131.19,9.37]
[1726646959318,9.37,131.22,131.18,9.37]
[1726646959523,9.37,131.21,131.17,9.37]
[1726646962720,9.37,131.21,131.17,13.1811]
[1726646963021,9.37,131.21,131.17,9.37]
[1726646964014,9.37,131.2,131.17,9.37]
[1726646965718,9.37,131.2,131.17,13.1812]
[1726646965913,9.37,131.22,131.17,13.1812]
[1726646972025,9.37,131.23,131.18,9.37]
[1726646972620,9.37,131.23,131.18,13.1808]
[1726646975724,19.5958,131.27,131.18,3.8108]
[1726646975725,9.37,131.22,131.18,3.8108]
[1726646976728,9.37,131.2,131.17,3.8111]
[1726646977721,9.37,131.2,131.16,13.1814]
[1726646978928,9.37,131.21,131.16,13.1814]
[1726646979432,9.37,131.21,131.17,3.8112]
[1726646981918,9.37,131.21,131.17,13.1812]
[1726646982630,9.37,131.21,131.17,3.8112]
[1726646982833,9.37,131.21,131.17,13.1812]
[1726646983833,9.37,131.22,131.18,3.8109]
[1726646985330,9.37,131.22,131.18,13.1809]
[1726646990344,9.37,131.22,131.18,9.37]
[1726646990940,9.37,131.22,131.18,13.1808]
[1726646991140,9.37,131.22,131.18,9.37]
[1726646992349,9.37,131.22,131.17,13.1811]
[1726646993040,9.37,131.22,131.18,3.82292278]
[1726646995349,9.37,131.2,131.18,3.82292278]
[1726646998845,9.37,131.2,131.16,9.37]
[1726646999250,9.37,131.2,131.16,13.10552486]
[1726646999850,9.37,131.2,131.17,3.8111]
[1726647002947,19.5958,131.27,131.18,3.8109]
[1726647003251,9.37,131.22,131.18,3.8109]
[1726647003456,19.5958,131.27,131.18,9.37]
[1726647003755,9.37,131.23,131.18,9.37]
[1726647003959,9.37,131.23,131.19,3.8105]
[1726647004660,9.37,131.22,131.18,13.1808]
[1726647005648,9.37,131.21,131.17,14.6122]
[1726647006657,9.37,131.21,131.18,3.8109]
[1726647006857,9.37,131.21,131.17,10.8011]
[1726647007058,9.37,131.22,131.18,3.8107]
[1726647007257,4.3558,131.27,131.18,9.37]
[1726647007557,9.37,131.23,131.2,3.8103]
[1726647007756,4.3558,131.27,131.22,9.37]
[1726647008058,15.24,131.29,131.17,1.4311]
[1726647008059,9.37,131.28,131.24,9.37]
[1726647008259,9.37,131.27,131.23,9.37]
[1726647011361,9.37,131.27,131.23,13.1794]
[1726647011565,9.37,131.27,131.24,9.37]
[1726647013661,9.37,131.28,131.24,9.37]
[1726647014865,9.37,131.28,131.24,13.179]
[1726647016162,9.37,131.27,131.24,9.37]
[1726647024877,9.37,131.28,131.24,13.1792]
[1726647025079,4.3898,131.33,131.25,9.37]
[1726647025282,9.37,131.29,131.25,9.37]
[1726647025979,9.37,131.29,131.25,13.1789]
[1726647028591,4.3898,131.33,131.25,13.1789]
[1726647028778,9.37,131.29,131.25,13.1789]
[1726647031081,9.37,131.29,131.25,9.37]
[1726647031286,9.37,131.28,131.25,9.37]
[1726647031481,9.37,131.28,131.24,13.1792]
[1726647034586,9.37,131.28,131.25,9.37]
[1726647035082,9.37,131.27,131.23,3.84775903]
[1726647035283,4.3898,131.33,131.21,10.7867]
[1726647035284,9.37,131.26,131.21,10.7867]
[1726647035485,9.37,131.25,131.21,10.7867]
[1726647035979,13.1791,131.25,131.21,14.5965]
[1726647037289,3.8092,131.24,131.21,14.5965]
[1726647040789,3.8095,131.23,131.21,14.5965]
[1726647041687,3.8095,131.23,131.21,9.37]
[1726647041989,3.8099,131.22,131.2,13.1802]
[1726647042191,3.8099,131.22,131.2,3.8102]
[1726647042490,3.8103,131.21,131.18,9.37]
[1726647042883,3.8103,131.21,131.18,13.1808]
[1726647047895,3.8104,131.2,131.18,9.37]
[1726647048489,3.8104,131.2,131.17,14.5995]
[1726647048794,9.37,131.21,131.17,10.7884]
[1726647048990,3.8107,131.19,131.17,10.7884]
[1726647049193,3.8107,131.19,131.16,16.91692486]
[1726647049593,3.8107,131.19,131.16,13.1814]
[1726647050492,3.8107,131.19,131.17,3.8112]
[1726647051099,3.8107,131.19,131.17,13.1812]
[1726647056298,3.8107,131.19,131.17,9.37]
[1726647057799,3.8107,131.19,131.17,13.1812]
[1726647059706,9.37,131.19,131.15,5.25577962]
[1726647060005,9.37,131.2,131.15,14.62577962]
[1726647060206,9.37,131.2,131.16,3.8115]
[1726647062305,15.24,131.27,131.19,9.37]
[1726647062505,9.37,131.23,131.19,9.37]
[1726647063107,9.37,131.23,131.19,13.1805]
[1726647063411,9.37,131.23,131.19,9.37]
[1726647063798,9.37,131.22,131.19,9.37]
[1726647064004,9.37,131.22,131.17,13.1811]
[1726647064206,9.37,131.21,131.17,3.8111]
[1726647064404,9.37,131.21,131.16,14.6289]
[1726647065306,9.37,131.2,131.16,5.2589]
[1726647065508,9.37,131.21,131.17,9.37]
[1726647067110,9.37,131.22,131.17,9.37]
[1726647067313,15.24,131.27,131.17,9.37]
[1726647067514,9.37,131.22,131.18,9.37]
[1726647068912,9.37,131.22,131.18,13.1807]
[1726647070322,9.37,131.23,131.18,13.1807]
[1726647070820,9.37,131.23,131.19,9.37]
[1726647072021,9.37,131.23,131.18,13.1807]
[1726647073322,9.37,131.22,131.18,13.1807]
[1726647078225,9.37,131.22,131.17,13.1811]
[1726647080629,9.37,131.22,131.18,3.8109]
[1726647081030,9.37,131.22,131.18,13.1809]
[1726647084825,9.37,131.22,131.17,13.1811]
[1726647089032,9.37,131.21,131.17,13.1811]
[1726647089337,9.37,131.2,131.16,5.2589]
[1726647089942,9.37,131.2,131.16,1.4475]
[1726647090236,9.37,131.2,131.15,14.62577962]
[1726647090637,9.37,131.2,131.16,3.8115]
[1726647093733,9.37,131.18,131.13,6.42557342]
[1726647094043,9.37,131.16,131.12,10.8738]
[1726647094235,13.1818,131.16,131.12,14.6863]
[1726647094837,3.8118,131.16,131.13,3.8123]
[1726647095042,3.8118,131.16,131.13,13.1823]
[1726647100237,1.4029,131.2,131.14,3.8121]
[1726647100443,9.37,131.19,131.14,9.37]
[1726647100646,9.37,131.19,131.15,9.37]
[1726647101145,9.37,131.19,131.15,13.1818]
[1726647101538,9.37,131.19,131.15,9.37]
[1726647101739,9.37,131.19,131.14,13.182]
[1726647102244,9.37,131.18,131.14,13.182]
[1726647103231,9.37,131.19,131.14,13.182]
[1726647103436,9.37,131.19,131.14,9.37]
[1726647104342,9.37,131.19,131.14,13.182]
[1726647104539,9.37,131.17,131.14,3.812]
[1726647106541,9.37,131.17,131.13,9.37]
[1726647106542,9.37,131.17,131.13,3.8124]
[1726647106736,9.37,131.17,131.13,13.1824]
[1726647110654,9.37,131.16,131.12,14.6863]
[1726647112146,9.37,131.16,131.13,3.8124]
[1726647113548,9.37,131.17,131.13,3.8124]
[1726647113849,9.37,131.18,131.13,13.1824]
[1726647114350,1.331,131.17,131.13,13.1824]
[1726647116351,10.701,131.17,131.12,5.3164]
[1726647116553,9.37,131.16,131.12,5.3164]
[1726647117251,9.37,131.16,131.12,1.5038]
[1726647118353,9.37,131.16,131.11,10.8149]
[1726647118753,9.37,131.14,131.11,1.4449]
[1726647118950,9.37,131.14,131.11,5.2577]
[1726647119454,9.37,131.14,131.11,3.8128]
[1726647122156,9.37,131.14,131.1,9.37]
[1726647122454,9.37,131.13,131.09,13.1834]
[1726647124557,9.37,131.13,131.09,3.8134]
[1726647124755,9.37,131.12,131.06,2.8627]
[1726647124956,9.37,131.12,131.07,9.37]
[1726647125355,9.37,131.11,131.07,13.184]
[1726647125550,9.37,131.11,131.06,12.2327]
[1726647125753,9.37,131.1,131.06,2.8627]
[1726647125962,9.37,131.1,131.06,1.4255]
[1726647126253,9.37,131.09,131.04,9.37]
[1726647126855,9.37,131.09,131.05,13.1847]
[1726647127264,9.37,131.09,131.05,9.37]
[1726647127654,15.24,131.14,131.08,9.37]
[1726647127963,9.37,131.13,131.08,9.37]
[1726647128155,9.37,131.12,131.04,1.5041]
[1726647128357,9.37,131.12,131.08,9.37]
[1726647128562,19.13854079,131.14,131.08,9.37]
[1726647128760,9.37,131.13,131.08,9.37]
[1726647129462,9.37,131.13,131.04,1.5041]
[1726647129664,9.37,131.11,131.08,9.37]
[1726647132067,9.37,131.11,131.06,13.1844]
[1726647132753,3.89854079,131.14,131.07,13.1841]
[1726647132958,9.37,131.12,131.07,13.1841]
[1726647136562,9.37,131.12,131.08,3.8138]
[1726647136958,9.37,131.13,131.08,13.1838]
[1726647141364,2.8324,131.15,131.08,3.8138]
[1726647141365,9.37,131.12,131.08,3.8138]
[1726647142771,9.37,131.11,131.08,3.8138]
[1726647144273,9.37,131.12,131.08,3.8138]
[1726647145574,9.37,131.14,131.1,9.37]
[1726647146075,9.37,131.14,131.1,13.1831]
[1726647146275,9.37,131.15,131.1,13.1831]
[1726647147674,9.37,131.13,131.1,13.1831]
[1726647148081,9.37,131.12,131.09,13.1835]
[1726647148379,9.37,131.11,131.08,9.37]
[1726647148581,9.37,131.11,131.08,3.8137]
[1726647150676,9.37,131.12,131.08,3.8137]
[1726647155081,9.37,131.11,131.08,3.8137]
[1726647155586,9.37,131.11,131.07,13.184]
[1726647158885,1.331,131.12,131.08,9.37]
[1726647159090,10.701,131.12,131.08,9.37]
[1726647159795,10.701,131.12,131.09,3.8135]
[1726647161594,10.701,131.12,131.08,13.1838]
[1726647162997,1.331,131.12,131.08,9.37]
[1726647163298,10.701,131.12,131.08,9.37]
[1726647164994,10.701,131.12,131.09,3.8135]
[1726647165590,9.37,131.12,131.09,3.8135]
[1726647169298,9.37,131.11,131.08,3.8138]
[1726647172195,9.37,131.12,131.07,9.37]
[1726647172796,9.37,131.12,131.08,13.1836]
[1726647172997,9.37,131.12,131.08,9.37]
[1726647173804,9.37,131.12,131.09,3.8135]
[1726647186607,9.37,131.1,131.04,1.5041]
[1726647186808,9.37,131.1,131.05,13.50381846]
[1726647187008,9.37,131.1,131.07,9.37]
[1726647187213,9.37,131.1,131.08,6.42872295]
[1726647187412,9.37,131.1,131.07,9.37]
[1726647187612,9.37,131.1,131.08,10.24244866]
[1726647187816,9.37,131.1,131.08,3.8137]
[1726647189004,9.37,131.1,131.06,9.37]
[1726647189005,9.37,131.1,131.07,3.8141]
[1726647189211,9.37,131.09,131.04,1.5041]
[1726647189406,9.37,131.09,131.05,13.50502429]
[1726647189613,9.37,131.08,131.06,10.24352786]
[1726647189815,9.37,131.08,131.06,3.8142]
[1726647190117,9.37,131.08,131.04,5.3191]
[1726647190315,9.37,131.08,131.05,6.43007641]
[1726647190521,9.37,131.08,131.04,1.5041]
[1726647191017,9.37,131.08,131.05,6.43014109]
[1726647191213,9.37,131.08,131.05,3.8147]
[1726647191714,9.37,131.08,131.04,5.3189]
[1726647191922,9.37,131.06,130.95,19.0847]